[Event "Early-Titled-Tuesday-Blitz-January-30-2024"]
[Site "Chess.com"]
[Date "2024.01.30"]
[Round "2"]
[White "SujanaLohani"]
[Black "LastHeroJr"]
[Result "0-1"]
[WhiteElo "2006"]
[BlackElo "2460"]
[TimeControl "180+1"]
[EndTime "8:19:15 PST"]
[Termination "LastHeroJr won on time"]

1. d4 {[%clk 0:02:42.8]} 1... Nf6 {[%clk 0:02:58.4]} 2. Nf3 {[%clk 0:02:42.1]}
2... g6 {[%clk 0:02:58.5]} 3. c4 {[%clk 0:02:39.8]} 3... Bg7 {[%clk 0:02:58.5]}
4. g3 {[%clk 0:02:37.8]} 4... O-O {[%clk 0:02:57.8]} 5. Bg2 {[%clk 0:02:37.2]}
5... d6 {[%clk 0:02:57.5]} 6. O-O {[%clk 0:02:37.9]} 6... Nbd7 {[%clk
0:02:57.1]} 7. Nc3 {[%clk 0:02:31.3]} 7... e5 {[%clk 0:02:56.5]} 8. dxe5 {[%clk
0:02:21.7]} 8... dxe5 {[%clk 0:02:55.6]} 9. e4 {[%clk 0:02:21.5]} 9... c6 {[%clk
0:02:51.8]} 10. Qc2 {[%clk 0:02:19.9]} 10... Re8 {[%clk 0:02:44.2]} 11. h3
{[%clk 0:02:17.9]} 11... Nc5 {[%clk 0:02:41.7]} 12. Be3 {[%clk 0:02:14.3]} 12...
Qe7 {[%clk 0:02:34.5]} 13. b4 {[%clk 0:02:05.4]} 13... Ne6 {[%clk 0:02:22.9]}
14. Nxe5 {[%clk 0:02:03.7]} 14... Qxb4 {[%clk 0:02:09.8]} 15. Rab1 {[%clk
0:01:42.9]} 15... Qa5 {[%clk 0:01:28.2]} 16. f4 {[%clk 0:01:37.5]} 16... Nh5
{[%clk 0:01:07.2]} 17. Kh2 {[%clk 0:01:26.2]} 17... Bxe5 {[%clk 0:00:59.8]} 18.
fxe5 {[%clk 0:01:25.4]} 18... Qxe5 {[%clk 0:01:00.7]} 19. Rf3 {[%clk 0:01:10.4]}
19... Nc5 {[%clk 0:00:53.4]} 20. Rbf1 {[%clk 0:00:41.7]} 20... Be6 {[%clk
0:00:45.1]} 21. Bf4 {[%clk 0:00:24.6]} 21... Qd4 {[%clk 0:00:27.3]} 22. Be3
{[%clk 0:00:16.3]} 22... Qe5 {[%clk 0:00:24.8]} 23. R3f2 {[%clk 0:00:12.8]}
23... Nxg3 {[%clk 0:00:20.5]} 24. Bf4 {[%clk 0:00:10.1]} 24... Nxf1+ {[%clk
0:00:20]} 25. Bxf1 {[%clk 0:00:09.3]} 25... Qd4 {[%clk 0:00:19.3]} 26. Rf3
{[%clk 0:00:04.5]} 26... Qd7 {[%clk 0:00:15]} 27. Bg5 {[%clk 0:00:02.4]} 27...
a6 {[%clk 0:00:12.4]} 28. Nd5 {[%clk 0:00:01.5]} 28... cxd5 {[%clk 0:00:11.8]}
29. exd5 {[%clk 0:00:02.4]} 29... Bf5 {[%clk 0:00:10.1]} 30. Qc3 {[%clk
0:00:01.7]} 30... Ne4 {[%clk 0:00:09.4]} 0-1

[Event "Early-Titled-Tuesday-Blitz-January-30-2024"]
[Site "Chess.com"]
[Date "2024.01.30"]
[Round "2"]
[White "Szparu"]
[Black "HeroWilczek"]
[Result "1-0"]
[WhiteElo "2772"]
[BlackElo "2485"]
[TimeControl "180+1"]
[EndTime "8:19:16 PST"]
[Termination "Szparu won by checkmate"]

1. Nf3 {[%clk 0:03:00.9]} 1... Nf6 {[%clk 0:02:58.9]} 2. c4 {[%clk 0:03:00.6]}
2... e6 {[%clk 0:02:58.9]} 3. g3 {[%clk 0:03:00.1]} 3... d5 {[%clk 0:02:59.2]}
4. d4 {[%clk 0:03:00.2]} 4... Be7 {[%clk 0:02:58.5]} 5. Bg2 {[%clk 0:02:59.8]}
5... O-O {[%clk 0:02:59.1]} 6. Nc3 {[%clk 0:02:59.9]} 6... Nbd7 {[%clk
0:02:57.4]} 7. O-O {[%clk 0:02:50.7]} 7... dxc4 {[%clk 0:02:57.5]} 8. Re1 {[%clk
0:02:42.1]} 8... c6 {[%clk 0:02:36.9]} 9. Qc2 {[%clk 0:02:24.4]} 9... Qc7 {[%clk
0:02:23.5]} 10. a4 {[%clk 0:02:16.6]} 10... Nd5 {[%clk 0:02:15.4]} 11. Bg5
{[%clk 0:02:11.8]} 11... Bxg5 {[%clk 0:01:51.9]} 12. Nxg5 {[%clk 0:02:12.7]}
12... N7f6 {[%clk 0:01:52.4]} 13. Nce4 {[%clk 0:01:51.8]} 13... h6 {[%clk
0:01:43.9]} 14. Nxf6+ {[%clk 0:01:51.2]} 14... Nxf6 {[%clk 0:01:44.8]} 15. Ne4
{[%clk 0:01:28.7]} 15... Nxe4 {[%clk 0:01:37.2]} 16. Bxe4 {[%clk 0:01:28.8]}
16... e5 {[%clk 0:01:35.8]} 17. Qxc4 {[%clk 0:01:25.6]} 17... exd4 {[%clk
0:01:29.6]} 18. Qxd4 {[%clk 0:01:26.5]} 18... Be6 {[%clk 0:01:28.4]} 19. Bg2
{[%clk 0:01:19.7]} 19... Rfd8 {[%clk 0:01:25.9]} 20. Qc3 {[%clk 0:01:15.9]}
20... Rd6 {[%clk 0:01:21.1]} 21. a5 {[%clk 0:01:15.8]} 21... a6 {[%clk
0:01:13.9]} 22. h4 {[%clk 0:00:57.1]} 22... Rad8 {[%clk 0:01:12.1]} 23. Rac1
{[%clk 0:00:55.4]} 23... Bd5 {[%clk 0:01:04.6]} 24. e4 {[%clk 0:00:52.2]} 24...
Be6 {[%clk 0:01:03.2]} 25. e5 {[%clk 0:00:49.4]} 25... Rd3 {[%clk 0:01:01.2]}
26. Qc5 {[%clk 0:00:47.7]} 26... Bd5 {[%clk 0:00:56.3]} 27. Bf1 {[%clk
0:00:47.6]} 27... Rb3 {[%clk 0:00:42.7]} 28. Rc2 {[%clk 0:00:48.3]} 28... Qd7
{[%clk 0:00:32.5]} 29. Rd2 {[%clk 0:00:29.3]} 29... Qf5 {[%clk 0:00:26.8]} 30.
Bc4 {[%clk 0:00:27.1]} 30... Qf3 {[%clk 0:00:11.4]} 31. Rxd5 {[%clk 0:00:19.9]}
31... cxd5 {[%clk 0:00:08.3]} 32. Bxb3 {[%clk 0:00:19.8]} 32... Qxb3 {[%clk
0:00:09.2]} 33. e6 {[%clk 0:00:15.4]} 33... fxe6 {[%clk 0:00:09.1]} 34. Rxe6
{[%clk 0:00:16.3]} 34... d4 {[%clk 0:00:08.9]} 35. Re7 {[%clk 0:00:15]} 35... d3
{[%clk 0:00:07.4]} 36. Qc7 {[%clk 0:00:05.9]} 36... Qd1+ {[%clk 0:00:01.7]} 37.
Kh2 {[%clk 0:00:06.2]} 37... d2 {[%clk 0:00:01.1]} 38. Rxg7+ {[%clk 0:00:06]}
38... Kf8 {[%clk 0:00:01.6]} 39. Qe7# {[%clk 0:00:05.5]} 1-0

[Event "Early-Titled-Tuesday-Blitz-January-30-2024"]
[Site "Chess.com"]
[Date "2024.01.30"]
[Round "2"]
[White "BardArtem"]
[Black "mistrzemi"]
[Result "1-0"]
[WhiteElo "2778"]
[BlackElo "2405"]
[TimeControl "180+1"]
[EndTime "8:19:16 PST"]
[Termination "BardArtem won by resignation"]

1. e4 {[%clk 0:03:00.9]} 1... e6 {[%clk 0:02:52.9]} 2. d4 {[%clk 0:03:00.5]}
2... d5 {[%clk 0:02:53.4]} 3. Nc3 {[%clk 0:03:00.4]} 3... Nf6 {[%clk 0:02:51.6]}
4. exd5 {[%clk 0:02:59.9]} 4... exd5 {[%clk 0:02:51]} 5. Bg5 {[%clk 0:03:00.1]}
5... Be7 {[%clk 0:02:50.6]} 6. Qd2 {[%clk 0:02:59.5]} 6... O-O {[%clk
0:02:50.6]} 7. O-O-O {[%clk 0:02:59.6]} 7... c6 {[%clk 0:02:50.2]} 8. Bd3 {[%clk
0:02:55.7]} 8... b5 {[%clk 0:02:50.5]} 9. Re1 {[%clk 0:02:54.6]} 9... Be6 {[%clk
0:02:42.2]} 10. Nf3 {[%clk 0:02:52.9]} 10... a5 {[%clk 0:02:40.8]} 11. Ne5
{[%clk 0:02:52.7]} 11... a4 {[%clk 0:02:38.7]} 12. Kb1 {[%clk 0:02:48.1]} 12...
b4 {[%clk 0:02:37.7]} 13. Nd1 {[%clk 0:02:48.1]} 13... b3 {[%clk 0:02:35.3]} 14.
a3 {[%clk 0:02:48.4]} 14... bxc2+ {[%clk 0:02:34.8]} 15. Qxc2 {[%clk 0:02:44.8]}
15... h6 {[%clk 0:02:30]} 16. h4 {[%clk 0:02:41.9]} 16... Qb6 {[%clk 0:02:13]}
17. Be3 {[%clk 0:01:51.8]} 17... Bxa3 {[%clk 0:02:03.3]} 18. g4 {[%clk
0:01:45.4]} 18... Ne4 {[%clk 0:02:02]} 19. Bxe4 {[%clk 0:01:23.9]} 19... dxe4
{[%clk 0:02:01.4]} 20. d5 {[%clk 0:01:24.8]} 20... Qb5 {[%clk 0:01:42.4]} 21.
dxe6 {[%clk 0:01:21.3]} 21... Qxe5 {[%clk 0:01:41.3]} 22. bxa3 {[%clk
0:01:15.7]} 22... Na6 {[%clk 0:01:37.8]} 23. Nb2 {[%clk 0:01:06.6]} 23... Rab8
{[%clk 0:01:35.7]} 24. Rc1 {[%clk 0:01:00.9]} 24... Rb3 {[%clk 0:01:26.2]} 25.
exf7+ {[%clk 0:00:56.6]} 25... Rxf7 {[%clk 0:01:23.4]} 26. Rhd1 {[%clk
0:00:57.2]} 26... Rfb7 {[%clk 0:01:22.4]} 27. Bd4 {[%clk 0:00:57.2]} 27... Qe7
{[%clk 0:00:53]} 28. Qc4+ {[%clk 0:00:43.2]} 28... Kh7 {[%clk 0:00:50.2]} 29.
Qxa6 {[%clk 0:00:43.3]} 29... Qxa3 {[%clk 0:00:44.8]} 30. Rc2 {[%clk 0:00:43.1]}
30... c5 {[%clk 0:00:40.4]} 31. Be5 {[%clk 0:00:26.5]} 31... Qb4 {[%clk
0:00:39]} 32. g5 {[%clk 0:00:16.5]} 32... Rb6 {[%clk 0:00:15.5]} 33. Qc8 {[%clk
0:00:09]} 33... a3 {[%clk 0:00:13.6]} 34. Qf5+ {[%clk 0:00:08.4]} 34... Rg6
{[%clk 0:00:10.2]} 35. h5 {[%clk 0:00:08.6]} 35... a2+ {[%clk 0:00:04.9]} 36.
Ka1 {[%clk 0:00:08]} 1-0

[Event "Early-Titled-Tuesday-Blitz-January-30-2024"]
[Site "Chess.com"]
[Date "2024.01.30"]
[Round "2"]
[White "KIEV-1"]
[Black "brm72"]
[Result "0-1"]
[WhiteElo "2235"]
[BlackElo "2688"]
[TimeControl "180+1"]
[EndTime "8:19:18 PST"]
[Termination "brm72 won on time"]

1. e4 {[%clk 0:03:00.9]} 1... c5 {[%clk 0:02:57.9]} 2. Nf3 {[%clk 0:03:00.8]}
2... e6 {[%clk 0:02:57.3]} 3. d4 {[%clk 0:03:01.5]} 3... cxd4 {[%clk 0:02:58.2]}
4. Nxd4 {[%clk 0:03:02]} 4... Nf6 {[%clk 0:02:58.7]} 5. Nc3 {[%clk 0:03:02.3]}
5... Nc6 {[%clk 0:02:59.4]} 6. a3 {[%clk 0:03:01.9]} 6... d6 {[%clk 0:02:58.5]}
7. Bg5 {[%clk 0:03:01.6]} 7... Be7 {[%clk 0:02:57.4]} 8. f4 {[%clk 0:03:01.8]}
8... a6 {[%clk 0:02:55.4]} 9. Qd2 {[%clk 0:02:58.4]} 9... Qc7 {[%clk 0:02:51.7]}
10. O-O-O {[%clk 0:02:58]} 10... b5 {[%clk 0:02:46.1]} 11. Nxc6 {[%clk
0:02:56.9]} 11... Qxc6 {[%clk 0:02:47]} 12. Be2 {[%clk 0:02:52.9]} 12... Bb7
{[%clk 0:02:30.6]} 13. Bf3 {[%clk 0:02:34]} 13... Qc7 {[%clk 0:02:21.6]} 14.
Bxf6 {[%clk 0:02:29.9]} 14... gxf6 {[%clk 0:02:07.2]} 15. Rhe1 {[%clk
0:02:26.2]} 15... O-O {[%clk 0:01:52.6]} 16. f5 {[%clk 0:02:20.2]} 16... Rac8
{[%clk 0:01:38.8]} 17. Re3 {[%clk 0:02:12.8]} 17... Kh8 {[%clk 0:01:30.8]} 18.
Bh5 {[%clk 0:02:07.3]} 18... d5 {[%clk 0:01:00]} 19. Rh3 {[%clk 0:01:54]} 19...
Bd6 {[%clk 0:00:46.6]} 20. Kb1 {[%clk 0:01:49.7]} 20... Bf4 {[%clk 0:00:42.9]}
21. Qf2 {[%clk 0:01:49.8]} 21... dxe4 {[%clk 0:00:34.2]} 22. Bg4 {[%clk
0:01:41.5]} 22... e5 {[%clk 0:00:20]} 23. Rh5 {[%clk 0:01:26]} 23... Bg5 {[%clk
0:00:07.3]} 24. h4 {[%clk 0:01:18.9]} 24... e3 {[%clk 0:00:07]} 25. Qe2 {[%clk
0:01:00.2]} 25... Bf4 {[%clk 0:00:06.9]} 26. Bf3 {[%clk 0:01:00.2]} 26... Rg8
{[%clk 0:00:06.4]} 27. Bxb7 {[%clk 0:00:46.3]} 27... Qxb7 {[%clk 0:00:07.3]} 28.
g4 {[%clk 0:00:46.6]} 28... Rcd8 {[%clk 0:00:06]} 29. Rxd8 {[%clk 0:00:40.7]}
29... Rxd8 {[%clk 0:00:06.9]} 30. g5 {[%clk 0:00:39.2]} 30... b4 {[%clk
0:00:05.3]} 31. axb4 {[%clk 0:00:32]} 31... Qxb4 {[%clk 0:00:03.1]} 32. g6
{[%clk 0:00:30.4]} 32... fxg6 {[%clk 0:00:02.4]} 33. fxg6 {[%clk 0:00:30.2]}
33... h6 {[%clk 0:00:02.3]} 34. Rf5 {[%clk 0:00:07.4]} 34... Kg7 {[%clk
0:00:02.7]} 35. h5 {[%clk 0:00:07.5]} 35... Rb8 {[%clk 0:00:02.9]} 36. Nd1
{[%clk 0:00:07.1]} 36... Qb5 {[%clk 0:00:02.9]} 37. Qg4 {[%clk 0:00:03.1]} 37...
a5 {[%clk 0:00:03]} 38. Rxf4 {[%clk 0:00:02.2]} 38... Rb7 {[%clk 0:00:02.4]} 0-1

[Event "Early-Titled-Tuesday-Blitz-January-30-2024"]
[Site "Chess.com"]
[Date "2024.01.30"]
[Round "2"]
[White "noblerone"]
[Black "Chesstiger64"]
[Result "1-0"]
[WhiteElo "2504"]
[BlackElo "2202"]
[TimeControl "180+1"]
[EndTime "8:19:18 PST"]
[Termination "noblerone won by resignation"]

1. d4 {[%clk 0:03:00.4]} 1... d6 {[%clk 0:02:59.6]} 2. c4 {[%clk 0:02:56.8]}
2... e5 {[%clk 0:02:59.7]} 3. e3 {[%clk 0:02:44.3]} 3... Nc6 {[%clk 0:02:58.5]}
4. Nf3 {[%clk 0:02:41.8]} 4... g6 {[%clk 0:02:58.1]} 5. Be2 {[%clk 0:02:41.2]}
5... Bg7 {[%clk 0:02:57]} 6. O-O {[%clk 0:02:35.2]} 6... Bg4 {[%clk 0:02:56.6]}
7. h3 {[%clk 0:02:26.2]} 7... Bxf3 {[%clk 0:02:53.7]} 8. Bxf3 {[%clk 0:02:26.6]}
8... Nge7 {[%clk 0:02:54.3]} 9. d5 {[%clk 0:01:57.3]} 9... Nb8 {[%clk
0:02:53.6]} 10. Nc3 {[%clk 0:01:50.1]} 10... b6 {[%clk 0:02:52.4]} 11. b4 {[%clk
0:01:41.1]} 11... a5 {[%clk 0:02:51.6]} 12. Bb2 {[%clk 0:01:30.7]} 12... axb4
{[%clk 0:02:50.3]} 13. Nb5 {[%clk 0:01:27.7]} 13... Nd7 {[%clk 0:02:49.2]} 14.
Qd2 {[%clk 0:01:22.8]} 14... Nc5 {[%clk 0:02:45.8]} 15. e4 {[%clk 0:01:09.8]}
15... O-O {[%clk 0:02:40.3]} 16. Qxb4 {[%clk 0:01:07.6]} 16... Nd3 {[%clk
0:02:39]} 17. Qc3 {[%clk 0:01:07.7]} 17... Nxb2 {[%clk 0:02:39.3]} 18. Qxb2
{[%clk 0:01:08.6]} 18... f5 {[%clk 0:02:39.6]} 19. a4 {[%clk 0:01:06.5]} 19...
Ra5 {[%clk 0:02:37]} 20. Qb4 {[%clk 0:01:02.6]} 20... fxe4 {[%clk 0:02:26.7]}
21. Bxe4 {[%clk 0:01:02.8]} 21... Nf5 {[%clk 0:02:27.3]} 22. Bxf5 {[%clk
0:01:03]} 22... gxf5 {[%clk 0:02:23.5]} 23. Ra3 {[%clk 0:01:03.1]} 23... e4
{[%clk 0:02:22.7]} 24. Rg3 {[%clk 0:00:59.2]} 24... Kh8 {[%clk 0:02:21.6]} 25.
Rxg7 {[%clk 0:00:55]} 25... Kxg7 {[%clk 0:02:20.4]} 26. Nd4 {[%clk 0:00:55.5]}
26... Qf6 {[%clk 0:02:11.9]} 27. Ne6+ {[%clk 0:00:55.5]} 27... Kh8 {[%clk
0:02:11.4]} 28. Nxf8 {[%clk 0:00:49.5]} 28... Qxf8 {[%clk 0:02:10.9]} 29. f3
{[%clk 0:00:50.2]} 29... Qe8 {[%clk 0:02:05.9]} 30. Qc3+ {[%clk 0:00:45.5]}
30... Kg8 {[%clk 0:02:02.1]} 31. Qf6 {[%clk 0:00:45.8]} 31... e3 {[%clk
0:01:51.9]} 32. Qxf5 {[%clk 0:00:39.3]} 32... Rxa4 {[%clk 0:01:50.8]} 33. Re1
{[%clk 0:00:37.1]} 33... Ra3 {[%clk 0:01:47.9]} 34. Qg5+ {[%clk 0:00:33.2]}
34... Kf8 {[%clk 0:01:43.1]} 35. Qf6+ {[%clk 0:00:32.1]} 35... Kg8 {[%clk
0:01:42]} 36. Qg5+ {[%clk 0:00:31.8]} 36... Kf8 {[%clk 0:01:39.7]} 37. h4 {[%clk
0:00:32.1]} 37... Qe7 {[%clk 0:01:37.5]} 38. Qf5+ {[%clk 0:00:31.1]} 38... Kg8
{[%clk 0:01:34.7]} 39. Qg4+ {[%clk 0:00:30]} 39... Kf8 {[%clk 0:01:33.1]} 40.
Qf5+ {[%clk 0:00:29.6]} 40... Kg8 {[%clk 0:01:33.3]} 41. Qg4+ {[%clk 0:00:29.4]}
41... Kf8 {[%clk 0:01:33.8]} 42. h5 {[%clk 0:00:27.4]} 42... Qe5 {[%clk
0:01:07.1]} 43. Qc8+ {[%clk 0:00:22.7]} 43... Kg7 {[%clk 0:01:05.4]} 44. Qxc7+
{[%clk 0:00:23]} 44... Kh6 {[%clk 0:01:05.9]} 45. Qf7 {[%clk 0:00:20.5]} 45...
Ra2 {[%clk 0:00:59.7]} 46. Qe6+ {[%clk 0:00:09.2]} 46... Qxe6 {[%clk 0:00:56.7]}
47. dxe6 {[%clk 0:00:10.1]} 47... Kg7 {[%clk 0:00:56.7]} 48. Rxe3 {[%clk
0:00:08.3]} 48... Kf8 {[%clk 0:00:56.2]} 49. f4 {[%clk 0:00:07]} 49... Ke7
{[%clk 0:00:56]} 50. f5 {[%clk 0:00:07.5]} 50... Ra8 {[%clk 0:00:54.9]} 51. g4
{[%clk 0:00:07.8]} 51... h6 {[%clk 0:00:55.1]} 52. Kg2 {[%clk 0:00:07.8]} 52...
Rf8 {[%clk 0:00:54.8]} 53. Kf3 {[%clk 0:00:08.2]} 53... Kf6 {[%clk 0:00:54.1]}
54. Kf4 {[%clk 0:00:09.1]} 54... Re8 {[%clk 0:00:53.8]} 55. Rb3 {[%clk
0:00:08.7]} 55... Rc8 {[%clk 0:00:53.4]} 56. Rxb6 {[%clk 0:00:08.5]} 56... Rxc4+
{[%clk 0:00:53.9]} 57. Kg3 {[%clk 0:00:09]} 57... Kg5 {[%clk 0:00:53.6]} 58. e7
{[%clk 0:00:08.6]} 58... Rxg4+ {[%clk 0:00:53.5]} 59. Kf3 {[%clk 0:00:08.3]}
59... Re4 {[%clk 0:00:54.1]} 60. Kxe4 {[%clk 0:00:08.3]} 1-0

[Event "Early-Titled-Tuesday-Blitz-January-30-2024"]
[Site "Chess.com"]
[Date "2024.01.30"]
[Round "2"]
[White "stratacticos"]
[Black "ural58"]
[Result "0-1"]
[WhiteElo "2037"]
[BlackElo "2463"]
[TimeControl "180+1"]
[EndTime "8:19:21 PST"]
[Termination "ural58 won on time"]

1. b4 {[%clk 0:02:59.6]} 1... e5 {[%clk 0:02:52.3]} 2. Bb2 {[%clk 0:02:58.8]}
2... f6 {[%clk 0:02:48]} 3. e4 {[%clk 0:02:56.9]} 3... d5 {[%clk 0:02:47.7]} 4.
exd5 {[%clk 0:02:55.9]} 4... Qxd5 {[%clk 0:02:47.4]} 5. a3 {[%clk 0:02:46.4]}
5... Be6 {[%clk 0:02:44.8]} 6. Nf3 {[%clk 0:02:32.6]} 6... a5 {[%clk 0:02:42.1]}
7. c4 {[%clk 0:02:30.2]} 7... Qd7 {[%clk 0:02:41.9]} 8. b5 {[%clk 0:02:21.7]}
8... c5 {[%clk 0:02:41.9]} 9. d3 {[%clk 0:02:12.1]} 9... Ne7 {[%clk 0:02:39.6]}
10. Be2 {[%clk 0:02:08.9]} 10... g6 {[%clk 0:02:37.7]} 11. O-O {[%clk
0:01:51.5]} 11... Bg7 {[%clk 0:02:37.2]} 12. Nc3 {[%clk 0:01:45.5]} 12... O-O
{[%clk 0:02:36.8]} 13. b6 {[%clk 0:01:30.6]} 13... Nbc6 {[%clk 0:02:35.7]} 14.
Ne4 {[%clk 0:01:28.9]} 14... Bf5 {[%clk 0:02:08]} 15. Nxc5 {[%clk 0:01:26.1]}
15... Qc8 {[%clk 0:02:06.6]} 16. Nh4 {[%clk 0:01:07.9]} 16... Rd8 {[%clk
0:02:05.7]} 17. Nxf5 {[%clk 0:01:06.8]} 17... Nxf5 {[%clk 0:02:06.6]} 18. a4
{[%clk 0:01:00.9]} 18... Ncd4 {[%clk 0:02:06.4]} 19. Bxd4 {[%clk 0:01:00.3]}
19... Nxd4 {[%clk 0:02:07.3]} 20. Ne4 {[%clk 0:00:53.6]} 20... h5 {[%clk
0:01:59.6]} 21. Nc3 {[%clk 0:00:53]} 21... Kh7 {[%clk 0:01:59.5]} 22. Nd5 {[%clk
0:00:52.6]} 22... Qf5 {[%clk 0:01:50.2]} 23. g4 {[%clk 0:00:48.1]} 23... Qg5
{[%clk 0:01:48.1]} 24. f4 {[%clk 0:00:39.7]} 24... exf4 {[%clk 0:01:47.2]} 25.
Kh1 {[%clk 0:00:37.1]} 25... Re8 {[%clk 0:01:26.4]} 26. gxh5 {[%clk 0:00:35.5]}
26... Rxe2 {[%clk 0:01:22.7]} 27. hxg6+ {[%clk 0:00:35]} 27... Kh8 {[%clk
0:01:09.3]} 28. Nxf4 {[%clk 0:00:34.7]} 28... Rae8 {[%clk 0:01:00.5]} 29. Nxe2
{[%clk 0:00:29.8]} 29... Rxe2 {[%clk 0:00:59.5]} 30. Rg1 {[%clk 0:00:28.7]}
30... Qf4 {[%clk 0:00:44.7]} 31. Rg2 {[%clk 0:00:25.6]} 31... Qf3 {[%clk
0:00:37.9]} 32. Qf1 {[%clk 0:00:23.6]} 32... Qxd3 {[%clk 0:00:20.6]} 33. Rxe2
{[%clk 0:00:17.5]} 33... Nxe2 {[%clk 0:00:21.5]} 34. Qg2 {[%clk 0:00:13.5]}
34... Nf4 {[%clk 0:00:20.5]} 35. Qxb7 {[%clk 0:00:10.4]} 35... Qxg6 {[%clk
0:00:20.6]} 36. Qb8+ {[%clk 0:00:05.3]} 36... Kh7 {[%clk 0:00:20.9]} 37. Qxf4
{[%clk 0:00:06.2]} 37... Bh6 {[%clk 0:00:21.3]} 38. Qf1 {[%clk 0:00:04]} 38...
Qe4+ {[%clk 0:00:20.3]} 39. Qg2 {[%clk 0:00:04.2]} 39... Qd4 {[%clk 0:00:20.4]}
40. Rg1 {[%clk 0:00:02.9]} 40... Bg5 {[%clk 0:00:19.2]} 41. Qh3+ {[%clk
0:00:02]} 41... Kg6 {[%clk 0:00:18.3]} 42. Qg2 {[%clk 0:00:01.8]} 42... Qxb6
{[%clk 0:00:18]} 0-1

[Event "Early-Titled-Tuesday-Blitz-January-30-2024"]
[Site "Chess.com"]
[Date "2024.01.30"]
[Round "2"]
[White "Rosh1610"]
[Black "Practical-Play"]
[Result "0-1"]
[WhiteElo "2367"]
[BlackElo "2604"]
[TimeControl "180+1"]
[EndTime "8:19:26 PST"]
[Termination "Practical-Play won on time"]

1. e3 {[%clk 0:02:57.1]} 1... f5 {[%clk 0:02:51.9]} 2. d4 {[%clk 0:02:56.8]}
2... Nf6 {[%clk 0:02:51.4]} 3. Nf3 {[%clk 0:02:54.6]} 3... e6 {[%clk 0:02:49.4]}
4. Bd3 {[%clk 0:02:54.9]} 4... b6 {[%clk 0:02:41.6]} 5. b3 {[%clk 0:02:53.7]}
5... Bb7 {[%clk 0:02:41.6]} 6. c4 {[%clk 0:02:51.8]} 6... Be7 {[%clk 0:02:39.1]}
7. Nbd2 {[%clk 0:02:50.9]} 7... O-O {[%clk 0:02:32.9]} 8. O-O {[%clk 0:02:50.3]}
8... d6 {[%clk 0:02:30.8]} 9. Bb2 {[%clk 0:02:49.1]} 9... Qe8 {[%clk 0:02:11.9]}
10. Qc2 {[%clk 0:02:47.5]} 10... Qg6 {[%clk 0:01:59.5]} 11. d5 {[%clk
0:02:44.6]} 11... Na6 {[%clk 0:01:19.6]} 12. Nd4 {[%clk 0:02:15.2]} 12... Nb4
{[%clk 0:00:44.2]} 13. Qc3 {[%clk 0:01:56.2]} 13... Nfxd5 {[%clk 0:00:42]} 14.
cxd5 {[%clk 0:01:02.9]} 14... Nxd5 {[%clk 0:00:42.9]} 15. Be4 {[%clk 0:00:35.3]}
15... Nxc3 {[%clk 0:00:19]} 16. Bxb7 {[%clk 0:00:36.2]} 16... Nd5 {[%clk
0:00:16.3]} 17. Bxa8 {[%clk 0:00:22.8]} 17... Rxa8 {[%clk 0:00:17.2]} 18. Nc6
{[%clk 0:00:22.4]} 18... Bf6 {[%clk 0:00:16.4]} 19. Bxf6 {[%clk 0:00:20.4]}
19... Qxf6 {[%clk 0:00:16.3]} 20. Nf3 {[%clk 0:00:21]} 20... g5 {[%clk 0:00:15]}
21. Rfd1 {[%clk 0:00:18.5]} 21... Nc3 {[%clk 0:00:12.5]} 22. Re1 {[%clk
0:00:16]} 22... e5 {[%clk 0:00:09.9]} 23. a4 {[%clk 0:00:12.3]} 23... g4 {[%clk
0:00:08.3]} 24. Nd2 {[%clk 0:00:11.8]} 24... f4 {[%clk 0:00:06.4]} 25. Rac1
{[%clk 0:00:10.4]} 25... Nd5 {[%clk 0:00:05.6]} 26. e4 {[%clk 0:00:08.5]} 26...
Ne7 {[%clk 0:00:04.8]} 27. Nxe7+ {[%clk 0:00:06.9]} 27... Qxe7 {[%clk
0:00:05.7]} 28. f3 {[%clk 0:00:07]} 28... Rf8 {[%clk 0:00:06.2]} 29. Rc6 {[%clk
0:00:05.4]} 29... gxf3 {[%clk 0:00:06]} 30. Nxf3 {[%clk 0:00:05.1]} 30... Rf7
{[%clk 0:00:06.4]} 31. Rec1 {[%clk 0:00:04.6]} 31... Qd8 {[%clk 0:00:06.6]} 32.
R1c2 {[%clk 0:00:04.5]} 32... Re7 {[%clk 0:00:04.8]} 33. b4 {[%clk 0:00:04.1]}
33... d5 {[%clk 0:00:04.7]} 34. exd5 {[%clk 0:00:02.4]} 34... Qxd5 {[%clk
0:00:04.5]} 35. Rxc7 {[%clk 0:00:02]} 35... Rxc7 {[%clk 0:00:04.4]} 36. Rxc7
{[%clk 0:00:02.7]} 36... Qd1+ {[%clk 0:00:05]} 37. Kf2 {[%clk 0:00:01.8]} 37...
e4 {[%clk 0:00:05.6]} 0-1